Cogmind - Beta 16 *** ADVENTURER MODE // 2025.12.26 @ 20:38:41 Player: SuDmit Result: Destroyed by H-66 Slayer with Gauss Rifle Performance ------------- Evolutions (4) 2000 Regions Visited (12) 2400 Robots Destroyed (149) 745 Value Destroyed (6977) 6977 Prototype IDs (49) 980 Alien Tech Used (0) 0 Bonus (2570) 2570 TOTAL SCORE: 15672 Bonus ------- High Alert Combat Kills 676 Follower Combat Kills 208 Entered Garrisons 400 Used RIF Installer 1000 Aligned with FarCom 300 Friendly Fire -14 Cogmind --------- Core Integrity 0/850 Matter 96/300 Energy 54/290 System Corruption 4% Temperature Cool (0) Movement Flying (176) Ox2 Location -6/Garrison Parts ------- > --- POWER (1) -------- Improved Deuterium Engine > --- PROPULSION (4) --- Cooled VTOL Module Cooled Cesium-ion Thruster > --- UTILITY (8) ------ Improved Cooling System Improved Trap Scanner Triangulator Launcher Guidance Computer Core Analyzer > --- WEAPON (2) ------- Gauss Cannon > --- INVENTORY (5) ---- Advanced Remote Datajack Peak State ------------ > --- POWER ------------ Micro Antimatter Reactor > --- PROPULSION ------- Cooled VTOL Module Q-thruster Impulse Thruster Array > --- UTILITY ---------- Weight Redist. System Advanced Targeting Computer Cloaking Device Improved Light Armor Plating Hacking Suite System Shield Relay Coupler [Behemoth] Advanced Component Analysis Suite > --- WEAPON ----------- Magnetic Acceleration Cannon Advanced Remote Datajack > --- INVENTORY -------- Cooled VTOL Module Cooled VTOL Module Stasis Canceller Advanced Assault Cannon Long-range Missile Launcher [Rating: 85] Favorites ----------- Power Micro Nuclear Core Engine Light Deuterium Engine Power Core Micro Nuclear Core Reactor Micro Antimatter Reactor Propulsion Cooled VTOL Module Treads Improved Medium Treads Leg Carbon-fiber Leg Hover Unit Gravmag System Flight Unit Cooled VTOL Module Utility System Shield Device Weight Redist. System Storage Small Storage Unit Processor Core Analyzer Hackware System Shield Protection Improved Light Armor Plating Weapon Makeshift Sword Energy Gun Plasma Rifle Ballistic Gun Precision Assault Rifle Ballistic Cannon Advanced Assault Cannon Launcher Long-range Missile Launcher Special Weapon Advanced Remote Datajack Impact Weapon Great Maul Slashing Weapon Makeshift Sword Special Melee Weapon Improved Datajack Build | -11 -10 -10 -10 -9 -8 -7 -7 -7 -6 -6 -6 -6 ------- Run | Yrd Mat Min Exi Min Mat Fac Low Low Fac Gar Fac Gar Slots Evolved 8 | . . . . . 4 2 . . 2 . . . Power . | . . . . . . . . . . . . . Propulsion 2 | . . . . . 1 1 . . . . . . Utility 6 | . . . . . 3 1 . . 2 . . . Weapon . | . . . . . . . . . . . . . Parts Attached 155 | 6 9 1 1 1 12 19 9 10 29 13 41 4 Power 19 | 1 . . . . 4 2 1 . 3 4 4 . Engine 8 | 1 . . . . 3 . . . 2 . 2 . Core 8 | . . . . . 1 2 1 . 1 1 2 . Reactor 3 | . . . . . . . . . . 3 . . Propulsion 37 | 2 4 . . 1 1 4 2 4 6 2 11 . Treads 3 | . . . . . . . 2 1 . . . . Leg 3 | 2 . . . . . . . 1 . . . . Wheel . | . . . . . . . . . . . . . Hover 2 | . . . . . . . . 1 . . 1 . Flight 29 | . 4 . . 1 1 4 . 1 6 2 10 . Utility 64 | 1 3 . 1 . 6 7 1 5 15 3 20 2 Device 28 | . 1 . . . 1 2 . 3 6 2 11 2 Storage 2 | 1 . . . . . . . 1 . . . . Processor 20 | . 1 . 1 . 5 3 . 1 5 . 4 . Hackware 10 | . . . . . . 2 1 . 3 1 3 . Protection 4 | . 1 . . . . . . . 1 . 2 . Artifact . | . . . . . . . . . . . . . Weapon 35 | 2 2 1 . . 1 6 5 1 5 4 6 2 Energy Gun 1 | . . . . . . . . . . . 1 . Energy Cannon . | . . . . . . . . . . . . . Ballistic Gun 8 | 2 . . . . 1 1 1 . 1 . 2 . Ballistic Cannon 15 | . 2 . . . . 3 . . 4 2 2 2 Launcher 5 | . . 1 . . . 1 1 . . 1 1 . Special Weapon 2 | . . . . . . . 1 . . 1 . . Impact Weapon 1 | . . . . . . . . 1 . . . . Slashing Weapon 2 | . . . . . . . 2 . . . . . Piercing Weapon . | . . . . . . . . . . . . . Special Melee Weapon 1 | . . . . . . 1 . . . . . . Unidentified Prototypes 7 | . . . . . 1 2 . . 3 . 1 . Parts Lost 56 | . . . . . 1 2 10 8 4 4 19 8 Power 6 | . . . . . . . 1 . 2 1 2 . Propulsion 13 | . . . . . . 1 4 2 1 . 3 2 Utility 25 | . . . . . . . 1 6 1 3 10 4 Weapon 12 | . . . . . 1 1 4 . . . 4 2 Highest Loss Streak 9 | . . . . . 1 1 9 2 2 2 5 4 To Critical Strikes . | . . . . . . . . . . . . . Average Backups 4 | . 3 5 5 5 4 4 4 4 4 4 4 2 Power . | . . . . . . . . . . . . . Propulsion . | . . 1 1 1 . . . . 1 2 . . Utility 2 | . 1 3 3 3 1 1 2 2 1 1 2 . Weapon . | . . 1 1 1 1 2 . . 1 1 . 1 Tool/Special . | . . . . . . . . . . . . . Unused Backups 9 | . . . . . . . 1 3 2 1 2 . Power 1 | . . . . . . . . . . . 1 . Propulsion . | . . . . . . . . . . . . . Utility 4 | . . . . . . . 1 2 1 . . . Weapon 4 | . . . . . . . . 1 1 1 1 . Tool/Special . | . . . . . . . . . . . . . Average Slot Usage (%) 88 | . 89 85 85 85 91 95 84 79 92 95 87 86 Engine 1 | . 5 . . . 5 4 . . 1 . 1 6 Core 3 | . . . . . . 2 6 7 3 3 2 . Treads 1 | . . . . . . . 10 6 . . . . Flight 19 | . 17 28 28 28 26 26 6 3 22 24 21 22 Device 13 | . 6 14 14 14 13 9 6 9 14 16 16 25 Processor 16 | . 12 14 14 14 28 28 23 22 21 6 10 15 Hackware 10 | . . . . . . 6 15 7 11 20 15 . Protection 2 | . 5 . . . . . . . 1 5 4 2 Ballistic Gun 1 | . 11 . . . 1 2 . . . . 2 . Ballistic Cannon 8 | . 16 26 28 23 14 11 2 . 5 9 5 12 Slashing Weapon 2 | . . . . . . . 7 13 2 . . . Peak Build Rating 85 | 6 7 6 11 12 29 48 45 44 70 85 84 69 Average Rating 48 | 4 6 6 9 11 23 41 41 40 58 64 62 60 On Entrance 30 | . 6 6 6 11 12 26 45 43 35 60 84 56 Avg Prop Armor Cover (%) 10 | . . . . . . . . 9 21 . 4 . Naked Turns . | . . . . . . . . . . . . . Heaviest Build 51 | 11 11 7 7 7 12 21 23 51 26 41 30 39 Greatest Support 60 | 20 20 8 8 8 13 23 60 60 26 35 36 22 Greatest Overweight (x) 3 | . 1 . . . . . 1 3 3 1 2 2 Average Overweight (x) . | . . . . . . . . . . . . 1 Largest Inventory Capacity 20 | 8 8 5 5 5 5 5 5 20 5 5 5 5 Average Capacity 5 | 6 5 5 5 5 5 5 5 5 5 5 5 5 Most Carried 8 | . 5 5 5 5 5 5 5 8 5 5 5 5 Average Carried 4 | . 3 5 5 4 4 4 4 4 4 4 4 2 Final Capacity 8 | 8 5 5 5 5 5 5 5 5 5 5 5 5 Final Carried 5 | . 5 5 5 5 5 5 5 4 5 5 5 1 Class Distribution -------------------- 34% | Hacker-Mutant 27% | Hacker-Sprinter 12% | Mutant 9% | Scout 7% | Hacker-Gladiator 3% | Derelict-Gladiator Dominant Class ---------------- Mutant | -10/Materials Mutant | -10/Mines Mutant | -10/Exiles Scout | -9/Mines Scout | -8/Materials Scout | -7/Factory Hacker-Mutant | -7/Lower Caves Hacker-Gladiator | -7/Lower Caves Hacker-Sprinter | -6/Factory Hacker-Sprinter | -6/Garrison Hacker-Mutant | -6/Factory Mutant | -6/Garrison Resources | -11 -10 -10 -10 -9 -8 -7 -7 -7 -6 -6 -6 -6 ----------- Run | Yrd Mat Min Exi Min Mat Fac Low Low Fac Gar Fac Gar Matter Collected 5967 | 252 267 119 . 10 522 605 482 130 633 1345 1512 90 Remotely . | . . . . . . . . . . . . . Salvage Created 4089 | . 227 94 . 9 407 279 254 322 712 764 991 30 Parts 220 | . 20 2 . 6 30 24 9 16 28 37 46 2 Haulers Intercepted 4 | . . . . . . . . . 1 . 3 . Recyclers Shooed 2 | . . . . . . . . . 2 . . . Parts Field Recycled . | . . . . . . . . . . . . . Retrieved Matter . | . . . . . . . . . . . . . Parts Self-Destructed 27 | . . . . . . . 9 18 . . . . Prevented . | . . . . . . . . . . . . . Parts Restored . | . . . . . . . . . . . . . Kills | -11 -10 -10 -10 -9 -8 -7 -7 -7 -6 -6 -6 -6 ------- Run | Yrd Mat Min Exi Min Mat Fac Low Low Fac Gar Fac Gar Combat Hostiles Destroyed 135 | . 13 6 . 4 9 13 9 6 13 33 26 3 Melee 9 | . . . . . . . 1 6 2 . . . Guns 18 | . 3 . . . 1 1 . . 1 . 12 . Cannons 73 | . 10 3 . 1 8 4 4 . 6 20 14 3 AOE 31 | . . 3 . 3 . 8 4 . . 13 . . Classes Destroyed 17 | . 3 1 . . 3 3 3 . 3 . 1 . Worker 1 | . . . . . . . . . 1 . . . Builder 2 | . . . . . . 1 . . . . 1 . Tunneler 1 | . . . . . . 1 . . . . . . Hauler 4 | . . . . . . . . . 1 . 3 . Recycler 1 | . . . . . . . . . 1 . . . Operator 1 | . . . . . 1 . . . . . . . Watcher 6 | . 1 . . . 2 . . . 2 . 1 . Swarmer 50 | . 9 . . 4 . 9 . . 5 12 11 . Cutter 4 | . . . . . . . . . . . 4 . Grunt 36 | . 4 4 . . 4 . 6 5 . 8 5 . Brawler 1 | . . . . . . . 1 . . . . . Duelist 2 | . . . . . 1 . . . . . 1 . Sentry 17 | . . . . . 4 3 . . 3 7 . . Hunter 7 | . . . . . . 1 . . 2 3 . 1 Programmer 14 | . . . . . . . 1 1 3 3 5 1 Behemoth 2 | . . . . . . . 1 . . . . 1 Assembled 2 | . . 2 . . . . . . . . . . Best Kill Streak 7 | . 3 4 . 4 4 4 4 4 2 7 3 1 Combat Bots Only 7 | . 3 4 . 4 4 4 4 4 2 7 3 1 Max Kills in Single Turn 4 | . 2 2 . 2 2 3 1 1 1 4 1 1 Gunslinging . | . . . . . . . . . . . . . Exploded 3 | . . 2 . 2 . 3 1 . . 3 . . Melee 1 | . . . . . . . 1 1 1 . . . Uniques/NPCs Destroyed . | . . . . . . . . . . . . . Combat | -11 -10 -10 -10 -9 -8 -7 -7 -7 -6 -6 -6 -6 -------- Run | Yrd Mat Min Exi Min Mat Fac Low Low Fac Gar Fac Gar Hostile Shots Fired 819 | . 43 18 . 7 19 76 77 73 70 152 210 74 Missed 330 | . 16 6 . 2 7 37 25 18 28 82 92 17 Hits 489 | . 27 12 . 5 12 39 52 55 42 70 118 57 Melee 11 | . . 1 . . . . . 4 . . 6 . Projectile 478 | . 27 11 . 5 12 39 52 51 42 70 112 57 AOE 2 | . . . . . . . . . . . 2 . Critical Strikes 26 | . . 1 . . 1 . 2 4 2 2 11 3 Part Disruptions 1 | . . . . . . . . . . . 1 . Damage Taken 6817 | . 173 154 . 32 140 332 766 819 517 790 2256 838 Core 1457 | . 36 38 . . 33 36 195 261 128 173 387 170 Absorbed by Shields 318 | . . . . . . 12 100 . 28 . 33 145 Redirected to Shielding 10 | . 10 . . . . . . . . . . . Ignored by Resistances 1995 | . 59 45 . 10 39 110 237 234 183 229 570 279 Regen/Repaired (Parts) 189 | . . . . . . . . . 147 . 42 . Core Remaining (%) 73 | 100 . . . 70 94 . . 29 . . . . Volleys Fired 360 | . 26 9 . 3 32 29 29 . 20 80 108 24 Largest 2 | . 2 2 . 2 2 2 2 . 2 2 2 2 Hottest 87 | . 60 60 . 60 60 80 80 . 84 84 87 80 Shots Fired 587 | . 53 12 . 5 55 53 45 . 35 135 150 44 Gun 101 | . 15 . . . 3 16 . . 2 . 65 . Cannon 415 | . 38 8 . 3 44 31 32 . 33 107 75 44 Launcher 57 | . . 4 . 2 8 6 11 . . 24 2 . Special 14 | . . . . . . . 2 . . 4 8 . Kinetic 513 | . 53 8 . 3 47 47 32 . 35 107 137 44 Thermal 3 | . . . . . . . . . . . 3 . Explosive 56 | . . 4 . 2 8 6 11 . . 24 1 . Electromagnetic 1 | . . . . . . . . . . . 1 . Robot Hit Streak 31 | . 11 11 . 7 14 14 20 . 12 31 20 13 Robot Miss Streak 3 | . 3 1 . . 1 2 1 . 1 3 2 2 Penetration Max 1 | . . . . . . . . . . . . 1 Secondary Targets 1 | . 1 . . . . . . . . . . . Max Gunslinging Chain 1 | . 1 . . . . . . . . . . . Shots Hit Robots 476 | . 33 9 . 5 36 33 43 20 51 99 110 37 Core Hits 245 | 1 16 7 . 4 21 33 22 8 17 59 49 8 Critical Kills 2 | . . . . . . . . . 2 . . . Critical Parts Destroyed 3 | . . . . . . . . . 3 . . . Critical Strikes 24 | . . . . . 2 1 3 3 7 3 3 2 Blast 13 | . . . . . 2 1 2 . . 3 3 2 Smash 5 | . . . . . . . . . 5 . . . Sever 6 | . . . . . . . 1 3 2 . . . Melee Attacks 64 | . . . . . . . 2 25 37 . . . Impact 29 | . . . . . . . . . 29 . . . Slashing 35 | . . . . . . . 2 25 8 . . . Piercing . | . . . . . . . . . . . . . Sneak Attacks 3 | . . . . . . . . . 3 . . . Combat Hostiles 1 | . . . . . . . . . 1 . . . Follow-up Attacks 7 | . . . . . . . . 2 5 . . . Damage Inflicted 15555 | 6 534 367 . 243 625 1275 1543 710 2060 4322 2839 1031 Guns 1410 | . 98 . . . 37 149 . . 35 . 1091 . Cannons 8233 | . 436 90 . 56 588 506 824 . 662 2349 1691 1031 Explosions 3755 | . . 277 . 187 . 620 641 . . 1973 57 . Melee 2151 | . . . . . . . 78 710 1363 . . . Ramming 6 | 6 . . . . . . . . . . . . Kinetic 9621 | . 534 90 . 56 625 655 824 . 697 2349 2760 1031 Thermal 22 | . . . . . . . . . . . 22 . Explosive 3683 | . . 277 . 187 . 548 641 . . 1973 57 . Electromagnetic 72 | . . . . . . 72 . . . . . . Impact 1200 | . . . . . . . . . 1200 . . . Slashing 951 | . . . . . . . 78 710 163 . . . Piercing . | . . . . . . . . . . . . . Highest Corruption 9 | . 1 1 1 1 . 1 1 2 3 4 9 4 Average Corruption 2 | . 1 1 1 1 . 1 1 1 2 3 3 4 Corruption Purged 14 | . . . . . . . . 2 . . 12 . Corruption Blocked . | . . . . . . . . . . . . . Effects 145 | . 3 3 . 2 . 2 11 8 11 35 61 9 Message Errors 32 | . 1 . . . . 1 1 . 1 11 14 3 Matter Fused 39 | . . 2 . . . 1 5 1 3 9 18 . Heat Flow Errors 17 | . . . . 1 . . 1 2 3 4 6 . Energy Discharges 15 | . 1 . . . . . 1 3 2 1 5 2 Parts Rejected 2 | . . . . . . . . . . . 2 . Parts Fused 1 | . . . . . . . . . . . . 1 Data Loss (minor) 18 | . . . . 1 . . 2 2 1 2 7 3 Data Loss (major) 3 | . . . . . . . . . . 1 2 . Misfires 7 | . 1 . . . . . . . . 1 5 . Alerts 7 | . . . . . . . 1 . . 4 2 . Weapon Failures 4 | . . 1 . . . . . . 1 2 . . Overload Shots . | . . . . . . . . . . . . . Overflow Damage 658 | . 13 . . 2 . 16 . 18 486 93 30 . Projectiles 84 | . 13 . . . . . . . 7 62 2 . Explosions 77 | . . . . 2 . 16 . . . 31 28 . Melee 497 | . . . . . . . . 18 479 . . . Knockbacks 43 | . 4 2 . 2 6 . 2 . 7 5 15 . Impact 6 | . . . . . . . . . 6 . . . Kinetic 35 | . 4 2 . 2 6 . 2 . 1 5 13 . Secondary 2 | . . . . . . . . . . . 2 . Self-Inflicted Damage 293 | . . . . . . . . . . 104 189 . Shots 7 | . . . . . . . . . . 4 3 . Rammed . | . . . . . . . . . . . . . Targets Rammed 1 | 1 . . . . . . . . . . . . Kicked 1 | 1 . . . . . . . . . . . . Crushed . | . . . . . . . . . . . . . Highest Temperature 430 | . 3 . . 246 19 30 430 260 197 244 253 248 Average Temperature 74 | . 2 . . 130 6 9 212 82 34 47 51 122 Received Heat Transfer 2012 | . 12 42 . . 99 . 621 477 12 27 266 456 Effects 11 | . . . . . . . 7 . . 2 . 2 Shutdowns 1 | . . . . . . . 1 . . . . . Energy Bleed 2 | . . . . . . . 1 . . 1 . . Interference 7 | . . . . . . . 4 . . 1 . 2 Matter Decay 1 | . . . . . . . 1 . . . . . Siege Activations . | . . . . . . . . . . . . . Martial Activations . | . . . . . . . . . . . . . Shielding Activations . | . . . . . . . . . . . . . Robots Disrupted . | . . . . . . . . . . . . . Combat Hostiles . | . . . . . . . . . . . . . Robots Corrupted 6 | . . . . . . . . . 6 . . . Combat Hostiles 4 | . . . . . . . . . 4 . . . Parts Fried 6 | . . . . . . . . . 3 . 3 . Impact Corruptions 17 | . . . . . . . . . 17 . . . Robots Melted . | . . . . . . . . . . . . . Combat Hostiles . | . . . . . . . . . . . . . Parts Melted . | . . . . . . . . . . . . . Heat Transferred 50 | . . . . . . . . . . . 50 . Parts Sabotaged . | . . . . . . . . . . . . . Parts Stolen . | . . . . . . . . . . . . . Parts Stripped . | . . . . . . . . . . . . . Power Chain Reactions . | . . . . . . . . . . . . . Alert | -11 -10 -10 -10 -9 -8 -7 -7 -7 -6 -6 -6 -6 ------- Run | Yrd Mat Min Exi Min Mat Fac Low Low Fac Gar Fac Gar Maximum Alert Level 4 | . 1 . . . . . . . 1 4 3 . Low Security (%) 64 | 100 69 100 . 100 100 100 . . 99 7 43 100 Level 1 8 | . 30 . . . . . . . . 21 9 . Level 2 16 | . . . . . . . . . . 10 39 . Level 3 7 | . . . . . . . . . . 31 7 . Level 4 4 | . . . . . . . . . . 29 . . Level 5 . | . . . . . . . . . . . . . High Security . | . . . . . . . . . . . . . Max Security . | . . . . . . . . . . . . . Peak Influence 1397 | . 315 172 . 85 99 196 . . 218 1397 804 92 Initial 635 | . . 97 . . 14 22 . . . . 635 67 Average 271 | . 128 112 . 19 34 43 . . 43 797 342 72 Influence Increases 6870 | . 507 135 . 89 350 805 182 152 954 1457 2144 95 Destroy 0b10 Robot/C 2876 | . 260 80 . 64 160 240 148 104 260 660 840 60 Destroy 0b10 Robot/NC 113 | . 5 . . . 20 8 . . 25 . 55 . Destroy Leader 488 | . 52 . . 8 52 56 34 18 96 20 132 20 Allied During Kill 49 | . . . . . 29 9 . . . 3 8 . Successful Hack 503 | . 30 4 . 4 17 176 . . 110 . 162 . Select Force Hacks 556 | . 60 . . . 24 112 . . 240 . 120 . Disable Machine 171 | . 9 . . . 8 64 . . 18 18 54 . Anti-Garrison Action 400 | . . . . . . . . . . 400 . . Destroy Structure 436 | . 1 21 . 13 40 32 . . 10 221 98 . Partial Spotted 147 | . 15 . . . . 12 . . 45 30 45 . Lose Combat Pursuer 1131 | . 75 30 . . . 96 . 30 150 105 630 15 Influence Decreases 6788 | . 212 338 92 44 338 862 182 152 954 60 3431 123 Entered New Map 1161 | . . 198 92 . 31 35 . . . . 762 43 Time Decay 3633 | . 212 140 . 44 277 368 90 136 717 . 1649 . Lost Part 478 | . . . . . 10 20 92 16 30 40 190 80 Lost Ally 575 | . . . . . 20 98 . . 57 20 380 . Purge Threat 941 | . . . . . . 341 . . 150 . 450 . Squads Dispatched 64 | . 3 . . . 2 11 . . 18 . 30 . Investigation 30 | . 3 . . . 1 6 . . 11 . 9 . Extermination 16 | . . . . . . 2 . . 6 . 8 . Reinforcement 8 | . . . . . . . . . 1 . 7 . Assault 4 | . . . . . 1 . . . . . 3 . Garrison 6 | . . . . . . 3 . . . . 3 . Intercept . | . . . . . . . . . . . . . Searches Triggered . | . . . . . . . . . . . . . Unchained Authorized 1 | . . . . . . . . . . . 1 . Construction Impeded . | . . . . . . . . . . . . . Haulers Reinforced 2 | . . . . . . . . . . . 2 . Active Scanning Responses . | . . . . . . . . . . . . . Cargo Convoy Interrupts . | . . . . . . . . . . . . . Stealth | -11 -10 -10 -10 -9 -8 -7 -7 -7 -6 -6 -6 -6 --------- Run | Yrd Mat Min Exi Min Mat Fac Low Low Fac Gar Fac Gar Distress Signals 13 | . . . . . 2 3 . . . . 8 . Communications Jammed . | . . . . . . . . . . . . . Distress Signals . | . . . . . . . . . . . . . Times Spotted 248 | . 16 8 . 3 15 20 8 15 28 35 97 3 Peak Tracking Total 10 | . 4 4 . 4 3 10 4 6 4 6 9 2 Tactical Retreats 46 | . 3 1 . . . 2 . 6 5 4 24 1 Traps | -11 -10 -10 -10 -9 -8 -7 -7 -7 -6 -6 -6 -6 ------- Run | Yrd Mat Min Exi Min Mat Fac Low Low Fac Gar Fac Gar Traps Triggered 18 | . . . . . . 3 . . 4 8 3 . Indirectly . | . . . . . . . . . . . . . Trap Hack Attempts . | . . . . . . . . . . . . . Triggered . | . . . . . . . . . . . . . Disarmed . | . . . . . . . . . . . . . Reprogrammed . | . . . . . . . . . . . . . Reused . | . . . . . . . . . . . . . Traps Extracted . | . . . . . . . . . . . . . Installed . | . . . . . . . . . . . . . Triggered . | . . . . . . . . . . . . . Objects Rigged 7 | . . . . . . 7 . . . . . . Exploded 3 | . . . . . . 3 . . . . . . Machines | -11 -10 -10 -10 -9 -8 -7 -7 -7 -6 -6 -6 -6 ---------- Run | Yrd Mat Min Exi Min Mat Fac Low Low Fac Gar Fac Gar Machines Disabled 27 | . 1 . . . 1 8 . . 2 9 6 . Max in Single Turn 4 | . 1 . . . 1 2 . . 1 2 4 . Garrison Access 3 | . . . . . 1 . . . 1 . 1 . Garrison Relay 5 | . . . . . . . . . . 5 . . Phase Generator 1 | . . . . . . . . . . 1 . . Machines Repaired . | . . . . . . . . . . . . . Machines Dismantled . | . . . . . . . . . . . . . Machines Sabotaged . | . . . . . . . . . . . . . Overloaded Fab Kills . | . . . . . . . . . . . . . Hacking | -11 -10 -10 -10 -9 -8 -7 -7 -7 -6 -6 -6 -6 --------- Run | Yrd Mat Min Exi Min Mat Fac Low Low Fac Gar Fac Gar Machines Accessed 125 | . 9 1 1 1 11 31 . . 36 1 34 . Terminals 66 | . 7 1 . 1 8 14 . . 16 1 18 . Fabricators 13 | . . . . . . 6 . . 4 . 3 . Repair Stations 4 | . . . . . . . . . 3 . 1 . Recycling Units 18 | . 2 . . . 1 4 . . 6 . 5 . Scanalyzers 12 | . . . . . 1 4 . . 4 . 3 . Garrison Access 11 | . . . . . 1 3 . . 3 . 4 . Total Hacks 403 | . 29 3 1 4 37 86 . . 127 6 110 . Successful 258 | . 18 2 1 3 24 50 . . 85 3 72 . Failed 140 | . 11 1 . . 12 35 . . 41 3 37 . Catastrophic 6 | . . . . . . 2 . . 1 . 3 . Database Lockouts 5 | . . . . 1 1 1 . . 1 . 1 . Manual 278 | . 25 2 1 4 31 62 . . 83 4 66 . Terminals 248 | . 27 3 . 4 29 43 . . 74 6 62 . Fabricators 40 | . . . . . . 15 . . 12 . 13 . Repair Stations 8 | . . . . . . . . . 6 . 2 . Recycling Units 35 | . 2 . . . 1 8 . . 9 . 15 . Scanalyzers 37 | . . . . . 4 10 . . 14 . 9 . Garrison Access 34 | . . . . . 3 10 . . 12 . 9 . Terminal Hacks 76 | . 11 1 1 2 5 15 . . 20 1 20 . Record 5 | . 2 . . . . 2 . . 1 . . . Part Schematic 4 | . . . . . . 2 . . 2 . . . Robot Schematic 1 | . . . . . . . . . . . 1 . Robot Analysis 15 | . 4 . . 2 2 2 . . 2 . 3 . Prototype ID Bank 6 | . . . . . . 2 . . 3 . 1 . Open DSF 2 | . . . . . . 1 . . . . 1 . Level Access Points 1 | . . . . . 1 . . . . . . . Branch Access Points 3 | . 1 . . . . 1 . . 1 . . . Emergency Access Points 4 | . 1 . . . . . . . 2 1 . . Terminal Index 5 | . 1 . . . 1 1 . . 1 . 1 . Fabricator Index 1 | . . . . . . . . . 1 . . . Recycling Unit Index 2 | . . . . . 1 . . . 1 . . . Scanalyzer Index 1 | . . . . . . . . . 1 . . . Garrison Index 1 | . . . . . . 1 . . . . . . Unreport Threat 7 | . . . . . . 3 . . 1 . 3 . Locate Traps 2 | . 1 . . . . . . . . . 1 . Maintenance Status 1 | . . . . . . . . . 1 . . . Surveillance Status 1 | . . . . . . . . . . . 1 . Transport Status 1 | . . . . . . . . . 1 . . . Reinforcement Status 1 | . . . . . . . . . . . 1 . Recall Reinforcements 4 | . 1 . . . . . . . . . 3 . Hauler Manifests 2 | . . . . . . . . . . . 2 . Registered Components 1 | . . . . . . . . . 1 . . . Zone Layout 4 | . . 1 . . . . . . 1 . 2 . Proto ID Catalog 1 | . . . 1 . . . . . . . . . Fabricator Hacks 5 | . . . . . . . . . 3 . 2 . Network Status 1 | . . . . . . . . . 1 . . . Load Schematic 4 | . . . . . . . . . 2 . 2 . Repair Station Hacks 8 | . . . . . . . . . 6 . 2 . Scan Component 4 | . . . . . . . . . 3 . 1 . Repair 4 | . . . . . . . . . 3 . 1 . Recycling Unit Hacks 1 | . . . . . . . . . . . 1 . Retrieve Components 1 | . . . . . . . . . . . 1 . Scanalyzer 24 | . . . . . 3 5 . . 11 . 5 . Insert Component 8 | . . . . . . 2 . . 5 . 1 . Analyze 6 | . . . . . . 1 . . 4 . 1 . Retrieve Study 10 | . . . . . 3 2 . . 2 . 3 . Garrison Access Hacks 6 | . . . . . . 2 . . 2 . 2 . Unlock Access 4 | . . . . . . 2 . . 1 . 1 . Seal Access 2 | . . . . . . . . . 1 . 1 . Unauthorized Hacks 138 | . 7 1 . 1 16 28 . . 43 2 40 . Terminals 74 | . 5 1 . 1 12 15 . . 18 2 20 . Assimilate 9 | . . . . . 3 1 . . 2 . 3 . Botnet 53 | . 5 . . . 8 10 . . 14 1 15 . Detonate 1 | . . . . . . 1 . . . . . . Disrupt 7 | . . 1 . 1 . 2 . . 1 1 1 . Operators 4 | . . . . . 1 1 . . 1 . 1 . Fabricators 17 | . . . . . . 3 . . 7 . 7 . Report 3 | . . . . . . . . . 1 . 2 . Liberate 4 | . . . . . . . . . 2 . 2 . Fabnet 7 | . . . . . . 2 . . 3 . 2 . Haulers 1 | . . . . . . . . . . . 1 . Download 1 | . . . . . . 1 . . . . . . Recompile 1 | . . . . . . . . . 1 . . . Repair Stations . | . . . . . . . . . . . . . Recycling Units 21 | . 2 . . . 1 3 . . 8 . 7 . Reject 2 | . . . . . . . . . 1 . 1 . Recyclers 2 | . . . . . . . . . 1 . 1 . Mask 3 | . . . . . . . . . 1 . 2 . Tunnel 14 | . 2 . . . 1 3 . . 5 . 3 . Scanalyzers 5 | . . . . . . 1 . . 3 . 1 . Extract 5 | . . . . . . 1 . . 3 . 1 . Garrison Access 21 | . . . . . 3 6 . . 7 . 5 . Broadcast 6 | . . . . . 1 2 . . 2 . 1 . Decoy 3 | . . . . . 1 1 . . 1 . . . Redirect 2 | . . . . . . . . . 1 . 1 . Reprogram 3 | . . . . . . 1 . . 1 . 1 . Intercept 3 | . . . . . . 1 . . 1 . 1 . Watchers 4 | . . . . . 1 1 . . 1 . 1 . Data Cores Recovered 2 | . . . . . 2 . . . . . . . Used 1 | . . . . . 1 . . . . . . . Hacking Detections 94 | . 7 1 . . 10 25 . . 24 1 26 . Full Trace Events 5 | . 1 . . . . 1 . . 1 . 2 . Feedback Events . | . . . . . . . . . . . . . Feedback Blocked 1 | . . . . . . . . . 1 . . . Robot Schematics Acquired 1 | . . . . . . . . . . . 1 . Robots Built . | . . . . . . . . . . . . . Authchips . | . . . . . . . . . . . . . Time . | . . . . . . . . . . . . . Total Robot Build Rating . | . . . . . . . . . . . . . Part Schematics Acquired 47 | . . . . . . 7 . . 27 . 13 . Parts Built . | . . . . . . . . . . . . . Authchips . | . . . . . . . . . . . . . Time . | . . . . . . . . . . . . . Total Part Build Rating . | . . . . . . . . . . . . . Part Studies Acquired 8 | . . . . . 3 2 . . 2 . 1 . Parts Repaired 4 | . . . . . . . . . 3 . 1 . Time 119 | . . . . . . . . . 81 . 38 . Parts Recycled . | . . . . . . . . . . . . . Recycled Matter . | . . . . . . . . . . . . . Retrieved Matter . | . . . . . . . . . . . . . Retrieved Components 2 | . . . . . . . . . . . 2 . Parts Scanalyzed 7 | . . . . . . 2 . . 4 . 1 . Part Schematics Acquired 6 | . . . . . . 1 . . 4 . 1 . Parts Damaged 2 | . . . . . . 1 . . 1 . . . Bothacking | -11 -10 -10 -10 -9 -8 -7 -7 -7 -6 -6 -6 -6 ------------ Run | Yrd Mat Min Exi Min Mat Fac Low Low Fac Gar Fac Gar Used RIF Installer 2 | . . . . . . . . . . 1 . 1 Zone Cloak 1 | . . . . . . . . . . . . 1 Robots Hacked 17 | . . . . . . . . . 1 3 13 . Non-combat 1 | . . . . . . . . . . . 1 . Combat 16 | . . . . . . . . . 1 3 12 . Robot Hacks Applied 7 | . . . . . . . . . . 2 5 . parse_system 2 | . . . . . . . . . . 1 1 . formatsys_high 5 | . . . . . . . . . . 1 4 . Relay Couplers Released 28 | . . . . . 2 4 . . . 22 . . Machine Destruction 24 | . . . . . 2 . . . . 22 . . Programmers 4 | . . . . . . 4 . . . . . . Attached 3 | . . . . . . . . . . 1 2 . Fabnet Peak Effective % 6 | . . . . . . . . . 6 6 6 6 Autooverrided 11 | . . . . . . . . . 1 2 8 . Robots Rewired . | . . . . . . . . . . . . . Allies Hacked 3 | . . . . . . . . . . . 3 . Hacks Repelled . | . . . . . . . . . . . . . Allies | -11 -10 -10 -10 -9 -8 -7 -7 -7 -6 -6 -6 -6 -------- Run | Yrd Mat Min Exi Min Mat Fac Low Low Fac Gar Fac Gar Total Allies 40 | . . 3 . 3 1 1 . . 4 3 25 . Largest Group 6 | . . 3 3 6 6 5 . . 2 1 5 . Highest-Rated Group 167 | . . 40 40 114 114 85 . . 37 85 167 . Highest-Rated Ally 85 | . . 16 16 31 31 31 . . 37 85 85 . Total Orders 6 | . . . . . . . . . . . 6 . STAY 5 | . . . . . . . . . . . 5 . FOLLOW 1 | . . . . . . . . . . . 1 . Ally Attacks 190 | . . 5 . . 33 20 . . 1 6 125 . Total Damage 3651 | . . 44 . . 374 245 . . 16 98 2874 . Kills 30 | . . 1 . . 3 2 . . . . 24 . Allies Corrupted 1 | . . . . . . . . . . . 1 . Allies Melted 1 | . . . . . . . . . . . 1 . Intel | -11 -10 -10 -10 -9 -8 -7 -7 -7 -6 -6 -6 -6 ------- Run | Yrd Mat Min Exi Min Mat Fac Low Low Fac Gar Fac Gar Active Infowar (turns) 7043 | . 236 299 148 265 588 713 1029 9 218 702 2362 474 Optics 1027 | . . . . . 585 268 . . 174 . . . Sensors 129 | . . . . . 74 55 . . . . . . Structural 3232 | . 236 299 148 265 588 658 1029 9 . . . . Traps 674 | . . . . . . . . . . . 239 435 Triangulation 1713 | . . . . . . . . . . . 1251 462 Cloaking 3178 | . . . . . . . . . 160 702 2122 194 ECM 1 | . . . . . . . . . . . 1 . Robot Analysis Total 15 | . 4 . . 2 2 2 . . 2 . 3 . Derelict Logs Recovered 4 | . . 1 . . . . 2 1 . . . . Drone Launches . | . . . . . . . . . . . . . Drone Recoveries . | . . . . . . . . . . . . . Exploration | -11 -10 -10 -10 -9 -8 -7 -7 -7 -6 -6 -6 -6 ------------- Run | Yrd Mat Min Exi Min Mat Fac Low Low Fac Gar Fac Gar Turns Passed 12304 | 51 513 299 148 265 588 923 1096 1252 1658 1457 3580 474 Spaces Moved 18785 | 35 731 510 234 486 899 2334 1169 895 3786 2563 4867 276 Core 117 | 1 . . . . . . 65 2 49 . . . Treads 701 | . . . . . . . 477 224 . . . . Legs 864 | 34 127 . . . . . . 669 34 . . . Wheels . | . . . . . . . . . . . . . Hover . | . . . . . . . . . . . . . Flight 17103 | . 604 510 234 486 899 2334 627 . 3703 2563 4867 276 Fastest Speed 26 | 50 37 37 37 37 32 27 28 120 26 26 26 99 Average Speed 43 | 118 51 37 37 37 32 29 83 131 30 29 41 124 Slowest Speed 240 | 120 120 37 37 37 37 34 160 240 200 109 152 169 Overloaded Moves 73 | . . . . . . . . . . . 73 . Propulsion Burnouts . | . . . . . . . . . . . . . Robots Hopped 168 | . 10 20 . 3 12 10 1 . 33 7 72 . Potential Cave-ins 4 | . . . . . 2 . . . . 1 1 . Cave-ins Triggered 1 | . . . . . . . . . . . 1 . Exploration Rate (%) 70 | 4 95 94 61 82 60 66 98 90 71 99 84 15 Regions Visited 12 Branch Regions 5 Pre-discovered Areas 15 | . 2 1 . . 1 3 . . 5 . 3 . Known Exits Taken 7 | . 1 . . . 1 1 1 1 1 . 1 . Unknown Exits Taken 4 | 1 . 1 1 1 . . . . . . . . Scrap Searched 10 | . . 1 . 2 . . 5 2 . . . . Spaces Dug 90 | . . . . . 21 . . . 8 . 61 . Terrain Destroyed 730 | . . 37 . 20 65 28 49 . 10 380 141 . Melee 7 | . . . . . . . . . 7 . . . Projectile 23 | . . . . . . 3 2 . 3 2 13 . AOE 700 | . . 37 . 20 65 25 47 . . 378 128 . Terrain Rammed . | . . . . . . . . . . . . . Walls Destroyed . | . . . . . . . . . . . . . Machines Disabled . | . . . . . . . . . . . . . Actions | -11 -10 -10 -10 -9 -8 -7 -7 -7 -6 -6 -6 -6 --------- Run | Yrd Mat Min Exi Min Mat Fac Low Low Fac Gar Fac Gar Total 21989 | 41 804 585 294 562 1126 2503 1241 952 4165 3124 6230 362 Wait 2548 | . 39 85 60 71 178 104 19 9 285 442 1202 54 Move 18453 | 34 710 472 233 479 874 2313 1166 894 3721 2549 4732 276 Hop 150 | . 10 17 . 3 12 10 1 . 31 5 61 . Pick Up 55 | . 6 . . 1 3 6 8 6 10 4 10 1 Fast Attach 88 | 6 1 . . . 5 7 1 8 19 5 35 1 Attach 39 | . . . . . 7 1 7 4 2 4 9 5 Detach 21 | . . . . . 4 1 . . 5 2 9 . Swap 115 | . 8 2 1 3 8 22 6 2 21 21 21 . Drop 75 | . 4 . . 2 3 10 1 7 14 10 23 1 Fire 360 | . 26 9 . 3 32 29 29 . 20 80 108 24 Melee 53 | . . . . . . . 2 22 29 . . . Ram . | . . . . . . . . . . . . . Kick 1 | 1 . . . . . . . . . . . . Crush . | . . . . . . . . . . . . . Escape Stasis 25 | . . . . . . . . . 8 1 16 . Rewire 6 | . . . . . . . 1 . . 1 4 . Trap . | . . . . . . . . . . . . . Miscellaneous . | . . . . . . . . . . . . . Route ------- -11/Scrapyard -10/Materials (discovered 5 exits: [*Mat x3] / *Min / [*Sub]) -10/Mines (discovered 3 exits: [*Mat x2] / *Exi) -10/Exiles (discovered 2 exits: *Min x2) -9/Mines -8/Materials (discovered 3 exits: *Fac x3) -7/Factory (discovered 9 exits: *Fac x4 / *Sto / *Low x2 / Gar / Gar) -7/Lower Caves -7/Lower Caves (discovered 2 exits: *Fac / *Zio) -6/Factory (discovered 7 exits: *Fac x4 / *Low x2 / Gar) -6/Garrison (discovered 3 exits: *Fac x3) -6/Factory (discovered 6 exits: *Fac x3 / *Low x2 / Gar) -6/Garrison History --------- Turn | Location | Event 10 | -11/Scrapyard | Discovered new exit (range 16) 52 | -11/Scrapyard | Entered Materials 53 | -10/Materials | Met a group of wandering Federalists 244 | -10/Materials | Identified exit to Mines 304 | -10/Materials | Discovered new exit (range 3) 317 | -10/Materials | Build established: Mutant 445 | -10/Materials | Discovered new exit (range 15) 449 | -10/Materials | Discovered new exit (range 14) 525 | -10/Materials | Discovered new exit (range 14) 565 | -10/Materials | Entered Mines 617 | -10/Mines | Excavation squad dispatched 617 | -10/Mines | A large section of the Mines collapsed 678 | -10/Mines | Discovered new exit (range 4) 720 | -10/Mines | Discovered new exit (range 9) 726 | -10/Mines | Assisted by bots powering up and referring to "LRC-V3" 826 | -10/Mines | Deemed a non-threat by the Exiles lab entrance 826 | -10/Mines | Discovered new exit (range 5) 864 | -10/Mines | Entered Exiles 864 | -10/Exiles | Accompanied by 3 allies 869 | -10/Exiles | Discovered new exit (range 15) 880 | -10/Exiles | Met 8R-AWN 886 | -10/Exiles | Met EX-HEX 898 | -10/Exiles | Met EX-BIN 903 | -10/Exiles | Aligned with FarCom system 904 | -10/Exiles | Given EX-Vault access code 912 | -10/Exiles | Opened EX-Vault 916 | -10/Exiles | Found 0b10 Alert Chip 924 | -10/Exiles | Warned to stay clear of 0b10 Research branches 935 | -10/Exiles | Met EX-DEC 948 | -10/Exiles | Discovered new exit (range 11) 1012 | -10/Exiles | Left Exiles lab with 0b10 Alert Chip 1012 | -10/Exiles | Entered Mines 1012 | -9/Mines | Accompanied by 3 allies 1015 | -9/Mines | Received a Mining Laser from a helpful Derelict 1094 | -9/Mines | Central database locked down 1155 | -9/Mines | Found a damaged Exp. Sensor Array with a note attached 1159 | -9/Mines | Found Prototype Device 1193 | -9/Mines | Discovered new exit (range 8) 1277 | -9/Mines | Entered Materials 1277 | -8/Materials | Accompanied by 6 allies 1277 | -8/Materials | Evolved 4 slots: Propulsion x1, Utility x3 1281 | -8/Materials | Identified Exp. Sensor Array 1282 | -8/Materials | Led the pair of lost Derelicts to an unsafe place 1423 | -8/Materials | Discovered new exit (range 17) 1483 | -8/Materials | Met 7R-MNS 1489 | -8/Materials | Identified exit to Factory 1646 | -8/Materials | Garrison activated, responded to threat 1781 | -8/Materials | Central database locked down 1865 | -8/Materials | Entered Factory 1865 | -7/Factory | Accompanied by 5 allies 1865 | -7/Factory | Evolved 2 slots: Propulsion x1, Utility x1 1866 | -7/Factory | Caught up to 7R-MNS 1895 | -7/Factory | Identified exit to DSF 1942 | -7/Factory | Identified exit to Garrison 2029 | -7/Factory | Build established: Scout 2085 | -7/Factory | Garrison activated, responded to threat 2142 | -7/Factory | Discovered new exit (range 16) 2157 | -7/Factory | Identified exit to Factory 2180 | -7/Factory | Discovered exit to Factory (range 15) 2313 | -7/Factory | Identified exit to Garrison 2363 | -7/Factory | Discovered exit to Factory (range 6) 2384 | -7/Factory | Identified exit to Storage 2384 | -7/Factory | Identified exit to Lower Caves 2504 | -7/Factory | Central database locked down 2773 | -7/Factory | Discovered exit to Factory (range 15) 2788 | -7/Factory | Entered Lower Caves 2805 | -7/Lower Caves | Learned 4 Factory zone layouts 2889 | -7/Lower Caves | Learned location of 1 exit from Factory 2893 | -7/Lower Caves | Discovered new exit (range 15) 2934 | -7/Lower Caves | Identified exit to Lower Caves 2982 | -7/Lower Caves | Spotted B-75 Beast 3076 | -7/Lower Caves | Lost 9 parts (1p3n1u4w) 3085 | -7/Lower Caves | Destroyed B-75 Beast 3283 | -7/Lower Caves | Build established: Hacker-Mutant 3884 | -7/Lower Caves | Entered another Lower Caves area 4208 | -7/Lower Caves | Build established: Hacker-Gladiator 4265 | -7/Lower Caves | Core integrity fell below 50% 4548 | -7/Lower Caves | Encountered a Warlord checkpoint 4581 | -7/Lower Caves | Discovered new exit (range 14) 4595 | -7/Lower Caves | Identified exit to Zion 4803 | -7/Lower Caves | Build established: Derelict-Gladiator 4944 | -7/Lower Caves | Attacked by a faux Warlord 5136 | -7/Lower Caves | Entered Factory 5136 | -6/Factory | Evolved 2 slots: Utility x2 5137 | -6/Factory | Identified exit to Factory 5283 | -6/Factory | Discovered new exit (range 12) 5288 | -6/Factory | Identified exit to Lower Caves 5440 | -6/Factory | Build established: Hacker-Gladiator 5548 | -6/Factory | Discovered exit to Factory (range 12) 5601 | -6/Factory | Spotted B-75 Beast 5714 | -6/Factory | Central database locked down 5777 | -6/Factory | Repaired Mak. Sword 5818 | -6/Factory | Build established: Hacker-Sprinter 6038 | -6/Factory | Repaired Imp. Reaction Control System 6115 | -6/Factory | Repaired Great Maul+ 6193 | -6/Factory | Identified exit to Garrison 6447 | -6/Factory | Discovered exit to Lower Caves (range 15) 6697 | -6/Factory | Discovered exit to Factory (range 2) 6794 | -6/Factory | Entered Garrison 6811 | -6/Garrison | Phase Generator disabled 6872 | -6/Garrison | Triggered checkpoint 7068 | -6/Garrison | Discovered new exit (range 15) 7094 | -6/Garrison | Triggered checkpoint 7160 | -6/Garrison | Discovered new exit (range 14) 7166 | -6/Garrison | Triggered checkpoint 7213 | -6/Garrison | Triggered checkpoint 7213 | -6/Garrison | Garrison Relay disabled 7241 | -6/Garrison | Triggered checkpoint 7395 | -6/Garrison | Destroyed 7 combat bots 7420 | -6/Garrison | Discovered new exit (range 10) 7432 | -6/Garrison | Triggered checkpoint 7648 | -6/Garrison | Triggered checkpoint 7660 | -6/Garrison | Local machine network offline 7671 | -6/Garrison | Installed Relay Interface Framework 7860 | -6/Garrison | Garrison Relay disabled 7994 | -6/Garrison | Garrison Relay disabled 8032 | -6/Garrison | Spotted B-75 Beast 8032 | -6/Garrison | Assimilated Beast 5a with formatsys_high 8071 | -6/Garrison | Garrison Relay disabled 8244 | -6/Garrison | Build established: Hacker-Mutant 8251 | -6/Garrison | Entered Factory 8251 | -6/Factory | Accompanied by 1 ally 8252 | -6/Factory | Identified exit to DSF 8320 | -6/Factory | Discovered exit to Lower Caves (range 5) 8367 | -6/Factory | Discovered exit to Factory (range 12) 8601 | -6/Factory | First assault squad dispatched 8984 | -6/Factory | Garrison activated, responded to threat 9492 | -6/Factory | Discovered exit to Lower Caves (range 12) 9665 | -6/Factory | Central database locked down 9684 | -6/Factory | Core integrity fell below 50% 9732 | -6/Factory | Lost 5 parts (1p2n1u1w) 9778 | -6/Factory | P-60 Hacker assimilated hostile G-50 Soldier 9826 | -6/Factory | Lost 5 allies 10111 | -6/Factory | Build established: Hacker-Sprinter 10217 | -6/Factory | Discovered exit to Factory (range 10) 10434 | -6/Factory | Crushed by falling debris 10465 | -6/Factory | Lost 5 parts (1n4u) 10706 | -6/Factory | Build established: Hacker-Mutant 11177 | -6/Factory | Discovered exit to Factory (range 14) 11298 | -6/Factory | Repaired Surge Thruster 11332 | -6/Factory | Unchained authorized (DW-4LL) 11633 | -6/Factory | DW-4LL burst out of a wall 11634 | -6/Factory | Core integrity fell below 20% 11682 | -6/Factory | DW-4LL burst out of a wall 11768 | -6/Factory | Spotted B-75 Beast 11786 | -6/Factory | DW-4LL burst out of a wall 11830 | -6/Factory | Identified exit to Garrison 11831 | -6/Factory | Entered Garrison 11928 | -6/Garrison | Expanded RIF knowledge: Zone Cloak 11984 | -6/Garrison | Spotted B-75 Beast 12074 | -6/Garrison | Destroyed B-75 Beast 12112 | -6/Garrison | Build established: Mutant 12305 | -6/Garrison | Destroyed by H-66 Slayer with Gauss Rifle Last Messages --------------- 12283_ Penetrated by Slug. 12285_ Slug penetrates H-66 Slayer. 12286_ Penetrated by Slug. 12286_ Cld. VTOL Module destroyed. 12286_ Penetrated by Slug. 12288_ Slug penetrates H-66 Slayer. 12290_ Penetrated by Slug. 12290_ Slug penetrates Wall. 12291_ Slug penetrates H-66 Slayer. 12291_ H-66 Slayer Lgt. Fission Core blasted off. 12292_ Penetrated by Slug. 12294_ Slug penetrates H-66 Slayer. 12295_ Gauss Cannon destroyed. 12296_ Penetrated by Slug. 12296_ Gauss Cannon destroyed. 12298_ H-66 Slayer destroyed. 12299_ Penetrated by Slug. 12299_ Force Field destroyed. 12300_ Slug penetrates H-66 Slayer. 12305_ Penetrated by Slug. Map ----- +----------------------------------------------------+ | ?????????????????????????????????????????????????? | | ??????????????????????????????????#####??????????? | | ?????????????????????????????????? ??????????? | | ?????????????????????????????????? ??????????? | | ?????????????????????????????????? ??????????? | | ??????????????????????????????????# #???????? ?? | | ??????????????????????????????????# ##??? ## ? | | ??????????????????????????????????" ?? ? | | ??????????????????????????????????" ?? ? | | ??????????????????????????????????" ?? ?? | | ??????????????????????????????????" ?? ???? | | ??????????????????????????????????# #? #??? # | | ??????????????????????????????????# ## ## # | | ??????????????????????????????????# | | ??????????????????????????????????# | | ??????????????????????????????????# # | | ??????????????????????????????????## ##""""#????? | | ???????????????????????????????????# #??Y???????? | | ???????????????????????????????????# #??????????? | | ???????????????????????????????????# #??????????? | | ???????????????????????????????????# #??????????? | | ???????????????????????????????????# #??????????? | | ???????????????????????????????????# #??????????? | | ??????????????######################% #??????????? | | ??????????????# *% %#??????????? | | ??????????????# @ %h% #??????????? | | ??????????????# ;#####################??????????? | | ??????????????# ##??????????????????????????????? | | ??????????????# #???????????????????????????????? | | ??????????????# #???????????????????????????????? | | ??????????????# #???????????????????????????????? | | ??????????????# #???????????????????????????????? | | ??????????????# #???????????????????????????????? | | ??????????????# #???????????????????????????????? | | ??????????????# ###?????????????????????????????? | | ??????????????# #?????????????????????????????? | | ??????????????# #?????????????????????????????? | | ??????????????# #?????????????????????????????? | | ??????????????# ###?????????????????????????????? | | ??????????????# #???????????????????????????????? | | ??????????????# #???????????????????????????????? | | ??????????????# #???????????????????????????????? | | ??????????????# #???????????????????????????????? | | ??????????????# #???????????????????????????????? | | ??????????????# #???????????????????????????????? | | ????#####"""### #???????????????????????????????? | | ??# #???????????????????????????????? | | ??# #???????????????????????????????? | | ???# ######### ##??????????????????????????????? | | ??????????????#^ #??????????????????????????????? | +----------------------------------------------------+ Best States ------------- Heat Dissipation 64 Energy Generation 23 Energy Capacity 300 Matter Stores 300 Matter Capacity 300 Sight Range 22 Robot Scan Range 20 Terrain Scan Density 10 Cloak Strength 2 Additional Mass Support 9 Corruption Containment 8 Armor Coverage 150 Resistance: KI 20 Resistance: TH 20 Resistance: EX 20 Resistance: EM 45 Resistance: I 20 Resistance: S 20 Resistance: P 20 Weapon Shielding 33 Melee Speed Boost 20 Evasion (%) 74 Targeting Accuracy 8 Melee Accuracy 16 Launcher Accuracy 20 Target Analysis 5 Core Analysis 9 Recoil Reduction 2 Particle Charging 15 Offensive Hacking 30 Defensive Hacking 20 Relay Coupler Types 1 Relay Coupler Value 35 Authchip Count 1 Item Schematics ----------------- Adv. Assault Cannon | -7/Factory | Scanalyzed IFF Parser | -7/Factory | Hacked Nuclear Pulse Array | -7/Factory | Hacked EM Disruption Field | -7/Factory | Downloaded Com. Matter Pod | -7/Factory | Extracted Hvy. Missile Launcher | -7/Factory | Extracted Imp. Heat Sink | -7/Factory | Extracted Great Maul | -6/Factory | Scanalyzed Imp. Trap Scanner | -6/Factory | Extracted Hpw. Tractor Beam | -6/Factory | Extracted Flak Gun | -6/Factory | Extracted Component Analysis Suite | -6/Factory | Extracted Nuclear Pulse Thruster | -6/Factory | Extracted Imp. EM Pulse Cannon | -6/Factory | Extracted Hrd. Medium Armor Plating | -6/Factory | Extracted Imp. Cloaking Device | -6/Factory | Hacked Cld. VTOL Module | -6/Factory | Scanalyzed Magnetic Acceleration Cannon | -6/Factory | Scanalyzed Lrn. Missile Launcher | -6/Factory | Scanalyzed Cesium-ion Thruster | -6/Factory | Extracted Core Analyzer | -6/Factory | Extracted Arm. Wheel | -6/Factory | Extracted Imp. Particle Charger | -6/Factory | Extracted Phase Cannon | -6/Factory | Extracted Imp. Actuator Array | -6/Factory | Extracted Railgun | -6/Factory | Hacked Power Sword | -6/Factory | Extracted Lgt. Nuclear Core | -6/Factory | Extracted Prc. Rocket Launcher | -6/Factory | Extracted Hpw. Shock Rifle | -6/Factory | Extracted Actuator Array | -6/Factory | Extracted Pulse Rifle | -6/Factory | Extracted Remote Datajack | -6/Factory | Extracted Lgt. Angular Momentum Engine | -6/Factory | Extracted Imp. Hardlight Generator | -6/Factory | Scanalyzed Adv. Sensor Array | -6/Factory | Extracted ECM Suite | -6/Factory | Extracted System Restoration Module | -6/Factory | Extracted Particle Charger | -6/Factory | Extracted Field Laser | -6/Factory | Extracted Hvy. Armor Plating | -6/Factory | Extracted Launcher Loader | -6/Factory | Extracted Microactuators | -6/Factory | Extracted Adv. Terrain Scanner | -6/Factory | Extracted Hacking Suite | -6/Factory | Extracted Cld. Plasma Cannon | -6/Factory | Extracted Dynamic Insulation System | -6/Factory | Extracted Robot Schematics ------------------ S-27 Virus | -6/Factory | Hacked Fabricated ------------ Nothing Repaired ---------- Mak. Sword | 27% | -6/Factory Imp. Reaction Control System | 12% | -6/Factory Great Maul | 36% | -6/Factory Surge Thruster | 40% | -6/Factory Studied --------- VTOL Module | -8/Materials | Hacked Rocket Launcher | -8/Materials | Hacked Hvy. Assault Rifle | -8/Materials | Hacked Adv. Assault Cannon | -7/Factory | Hacked Imp. Datajack | -7/Factory | Hacked Angular Momentum Engine | -6/Factory | Hacked Great Maul | -6/Factory | Hacked Magnetic Acceleration Cannon | -6/Factory | Hacked Alien Tech Used ----------------- None Achievements -------------- Bumper Bots Ew, Corruption Fishing Tech Hammer Time I Have Friends Everywhere Join The Dark Side Let Me Out Of Here Mindtrick Myspace Network Effect Recruitment Drive Spot Them First The Better Part Of Valor Throw Away The Key You Will Be Upgraded Challenges ------------ None Game ------ Seed TransportNanofilamentsFlail Manual? 0 Play Time 05:43:01 Cumulative 197.7 hours Start 2025.12.26 @ 14:14:18 End 2025.12.26 @ 20:38:41 Sessions 1 Manual Loads 0 Difficulty Adventurer Special Mode None Game No. 51 Rogue 2 Adventurer 49 Explorer 0 Win Type - Total 2 Types 2/0/0/0/0/0/0/0/0/0 Lore% 38 Gallery% 58 Achievement% 39 Wizard Run 0 Options --------- Layout 0 ASCII 0 Keyboard 1 Movement Numpad Keybinds 1 Fullscreen 1 Font 24/Terminus Map View 76x50 Zoom Use 0% Tactical HUD 1 Map Filters NONE Filters NONE Steam 1 RUN: 77cee83e-75dc-45ef-82bb-25c96fbe2b68